bitfinex/quotes_ETHUSD_20220215
["timestamp","ask_amount","ask_price","bid_price","bid_amount"]
[1644932210273,1.1057,3102.0,3101.3,0.98746044]
[1644932210473,0.80594,3101.9,3101.5,0.80597]
[1644932210676,0.8059339,3101.8,3101.5,0.80597]
[1644932211526,1.6118339,3101.8,3101.5,0.80597]
[1644932212226,1.61414862,3101.8,3101.5,0.80597]
[1644932212423,0.805874,3101.7,3101.5,0.80597]
[1644932212825,0.805874,3101.7,3101.3,3.2]
[1644932212826,3.4590909,3101.6,3101.3,2.893]
[1644932213025,4.2650909,3101.6,3101.3,2.893]
[1644932213230,5.34713581,3101.6,3101.3,2.893]
[1644932213428,0.8060041,3101.5,3101.3,2.893]
[1644932213827,0.3,3101.4,3101.3,2.893]
[1644932214625,0.8060041,3101.5,3101.3,3.69902]
[1644932214828,0.3,3101.4,3101.3,3.69902]
[1644932215277,0.808675,3101.5,3101.3,3.69902]
[1644932215677,0.8060041,3101.5,3101.3,3.69902]
[1644932216678,1.6119841,3101.5,3101.3,3.69902]
[1644932217680,1.6119841,3101.5,3101.3,2.893]
[1644932217979,0.6,3101.4,3101.3,2.893]
[1644932218830,0.8060041,3101.5,3101.3,2.893]
[1644932219729,1.6119841,3101.5,3101.3,2.893]
[1644932219929,1.6119841,3101.5,3101.3,3.699]
[1644932220334,1.6119841,3101.5,3101.3,2.893]
[1644932220732,0.3,3101.4,3101.3,2.893]
[1644932221131,0.3,3101.4,3101.3,3.69898]
[1644932221731,0.8060041,3101.5,3101.3,3.69898]
[1644932222575,0.8060041,3101.5,3101.3,4.64476487]
[1644932223978,0.806,3101.6,3101.3,4.64476487]
[1644932224177,0.806,3101.6,3101.3,23.62121592]
[1644932224378,1.61141,3102.0,3101.5,18.77]
[1644932224676,1.61141,3102.0,3101.6,19.57571]
[1644932224877,1.61141,3102.0,3101.6,0.80571]
[1644932225279,1.61141,3102.0,3101.9,0.94253928]
[1644932226081,1.61141,3102.0,3101.8,0.80577]
[1644932226326,5.63415,3102.4,3101.8,0.80577]
[1644932226327,3.2168,3102.4,3101.8,0.80577]
[1644932226527,1.79529179,3103.2,3102.1,0.80555]
[1644932226528,1.1891,3103.2,3102.1,0.80555]
[1644932226728,1.37227928,3103.1,3102.1,0.80555]
[1644932227330,0.80555,3102.4,3102.1,0.80555]
[1644932227528,0.80555,3102.4,3102.2,0.84898607]
[1644932227727,0.80555,3102.4,3102.2,1.65453607]
[1644932229730,0.00354399,3103.5,3102.3,11.54347]
[1644932229991,1.37569438,3103.9,3102.6,0.80533]
[1644932230190,0.00354399,3103.9,3102.7,1.388]
[1644932230390,0.00354399,3103.9,3103.0,1.0]
[1644932230391,0.80526,3103.7,3103.0,1.0]
[1644932230689,3.2237,3104.1,3103.0,0.388]
[1644932230690,0.8054245,3103.5,3103.0,0.388]
[1644932230892,0.00354399,3103.4,3103.0,0.388]
[1644932231493,0.80896399,3103.4,3103.0,0.388]
[1644932231892,0.80896399,3103.4,3103.0,1.19327]
[1644932233593,0.80896399,3103.4,3103.0,1.99865]
[1644932234021,0.81178676,3103.4,3103.0,0.80527]
[1644932234425,1.11178676,3103.4,3103.0,3.2]
[1644932234625,1.37234207,3103.3,3103.0,3.2]
[1644932235623,1.61122,3103.2,3103.0,3.2]
[1644932235822,2.4168385,3103.2,3103.0,3.2]
[1644932236427,1.67240006,3103.1,3103.0,1.73611364]
[1644932236623,1.82064614,3103.1,3101.8,1.6112]
[1644932236927,1.89940674,3102.8,3101.6,4.45367247]
[1644932237123,1.37240006,3102.7,3101.6,4.45367247]
[1644932237579,0.00282277,3102.6,3101.6,0.95367247]
[1644932238581,0.80585,3102.6,3102.1,0.91625457]
[1644932238781,0.00282277,3102.3,3102.1,0.91625457]
[1644932239579,0.80864277,3102.3,3102.1,0.91625457]
[1644932239781,1.6116394,3102.3,3101.6,1.6116]
[1644932239981,0.80582,3102.3,3101.9,0.8058]
[1644932240782,0.80582,3102.3,3102.0,1.05669434]
[1644932241224,0.8057953,3102.1,3102.0,1.05669434]
[1644932241423,0.8057953,3102.1,3101.9,0.8058]
[1644932242626,0.8057953,3102.1,3102.0,0.89059292]
[1644932244829,1.1057953,3102.1,3102.0,0.89059292]
[1644932245871,0.8057953,3102.1,3102.0,0.89059292]
[1644932246274,0.8057953,3102.1,3102.0,3.99059292]
[1644932247776,1.1057953,3102.1,3102.0,3.99059292]
[1644932248280,0.8057953,3102.1,3102.0,3.99059292]
[1644932249124,0.80863277,3102.2,3102.0,3.99059292]
[1644932249325,0.15426708,3102.7,3102.0,3.99059292]
[1644932249326,0.80556,3102.4,3102.0,3.99059292]
[1644932249526,0.00354399,3103.0,3102.4,0.80549]
[1644932249725,0.00354399,3103.1,3102.6,0.85586289]
[1644932250124,0.00354399,3103.1,3102.1,1.61106]
[1644932250125,1.6111734,3102.8,3102.1,1.61106]
[1644932250324,0.80566,3102.7,3102.1,1.61106]
[1644932250524,0.805635,3102.6,3102.3,1.61118]
[1644932250727,0.16316136,3102.7,3102.3,1.61118]
[1644932250925,0.00254308,3102.6,3102.3,1.61118]
[1644932251123,0.00254308,3102.6,3102.4,0.90488426]
[1644932251326,0.00254308,3102.6,3102.5,0.80565]
[1644932251725,0.3,3102.6,3102.5,0.80565]
[1644932252126,0.4987941,3102.6,3102.5,0.80565]
[1644932252576,0.1987941,3102.6,3102.5,0.80565]
[1644932252777,4.20099008,3102.7,3102.5,0.80565]
[1644932252978,4.0282823,3102.7,3102.6,0.97794894]
[1644932253178,2.41983507,3102.7,3102.6,0.97794894]
[1644932254179,2.4170123,3102.7,3102.6,0.97794894]
[1644932254782,2.7170123,3102.7,3102.6,0.97794894]
[1644932255578,2.7170123,3102.7,3102.5,0.80565]
[1644932255779,2.8846843,3102.7,3102.5,0.80565]
[1644932259136,2.88830955,3102.7,3102.5,0.80565]
[1644932260970,2.88673061,3102.7,3102.5,0.80565]
[1644932261774,3.94159355,3102.6,3102.0,3.1]
[1644932261972,4.07316995,3102.6,3102.0,3.1]
[1644932262173,0.3,3102.5,3102.0,3.1]
[1644932262377,1.75229552,3102.4,3102.0,3.1]
[1644932262577,0.3,3102.3,3102.0,3.1]
[1644932262975,2.58130759,3102.2,3102.0,3.1]
[1644932263174,0.3,3102.1,3102.0,3.1]
[1644932263732,0.49475437,3102.1,3102.0,3.1]
[1644932264129,1.30059777,3102.1,3102.0,3.1]
[1644932270177,2.36918759,3102.1,3102.0,3.1]
[1644932270782,1.30059777,3102.1,3102.0,3.1]
[1644932271827,2.38477363,3102.1,3102.0,3.1]
[1644932273325,1.30059777,3102.1,3102.0,3.1]
[1644932280326,4.4495862,3102.1,3101.8,0.80588]
[1644932280526,4.4495862,3102.1,3101.2,0.00533543]
[1644932280527,0.8059284,3101.9,3101.2,0.00533543]
[1644932280831,0.3,3101.7,3101.2,0.00533543]
[1644932281024,0.45161226,3101.7,3101.2,0.00533543]
[1644932281225,0.45161226,3101.7,3100.8,3.83679343]
[1644932281226,0.4475698,3101.7,3100.9,0.00533543]
[1644932281427,1.02355784,3101.5,3100.9,0.00533543]
[1644932281626,0.8060272,3101.4,3100.9,0.00533543]
[1644932281827,0.98924346,3101.4,3101.0,1.612]
[1644932282028,0.98924346,3101.4,3101.1,0.00533543]
[1644932282226,0.98924346,3101.4,3101.2,0.80604]
[1644932282678,0.80603,3101.3,3101.2,0.80604]
[1644932283479,1.10603,3101.3,3101.2,0.80604]
[1644932286823,1.10603,3101.3,3101.1,0.81134543]
[1644932287022,1.90834196,3101.3,3101.1,0.81134543]
[1644932288023,2.07182716,3101.3,3101.1,0.81134543]
[1644932288630,1.90834196,3101.3,3101.1,0.81134543]
[1644932289328,0.19060114,3101.3,3101.1,0.81134543]
[1644932289828,0.99657514,3101.3,3101.1,0.81134543]
[1644932290078,1.14953912,3101.3,3101.1,0.81134543]
[1644932290478,1.17930699,3101.3,3101.1,0.81134543]
[1644932290783,1.17930699,3101.3,3101.1,3.91134543]
[1644932290980,3.1327667,3101.2,3101.1,3.91134543]
[1644932291284,3.1327667,3101.2,3101.1,3.10533543]
[1644932291285,3.58108623,3101.2,3101.1,3.10533543]
[1644932291485,3.58108623,3101.2,3101.1,3.1]
[1644932291678,3.58108623,3101.2,3100.8,0.00306193]
[1644932291878,0.8061989,3101.0,3100.8,0.00306193]
[1644932292078,0.3,3100.9,3100.8,0.00306193]
[1644932292479,3.66653767,3100.9,3100.8,0.00306193]
[1644932292678,3.66653767,3100.9,3100.6,0.80618]
[1644932292879,1.76668992,3100.8,3100.7,0.00839742]
[1644932293081,2.06668992,3100.8,3100.7,0.00839742]
[1644932293281,1.9123526,3100.8,3100.7,0.00306199]
[1644932293479,2.06120372,3100.8,3100.7,0.00306199]
[1644932293724,2.06120372,3100.8,3100.5,0.00533543]
[1644932294025,0.3,3100.7,3100.6,0.00307696]
[1644932294227,0.18060112,3100.7,3100.6,0.00307696]
[1644932294424,2.06329619,3100.8,3100.6,0.00307696]
[1644932295023,0.8061107,3100.7,3100.6,0.81145543]
[1644932295224,0.96295603,3100.7,3100.6,0.00533543]
[1644932295624,0.94246475,3100.7,3100.6,0.00533543]
[1644932295824,0.8061107,3100.7,3100.6,0.00533543]
[1644932296124,0.95596808,3100.7,3100.6,0.00533543]
[1644932296325,0.8061107,3100.7,3100.6,0.00533543]
[1644932297325,1.26142314,3100.7,3100.6,0.00533543]
[1644932298178,1.30272841,3100.7,3100.6,0.00533543]
[1644932298379,1.1061107,3100.7,3100.6,0.00533543]
[1644932298778,0.8061107,3100.7,3100.6,0.00533543]
[1644932298976,0.96579271,3100.7,3100.6,0.00533543]
[1644932299181,0.99768116,3100.7,3100.6,0.00533543]
[1644932299379,0.8061107,3100.7,3100.6,0.00533543]
[1644932299777,0.97704367,3100.7,3100.6,0.00533543]
[1644932299977,1.1061107,3100.7,3100.6,0.00533543]
[1644932300179,1.24043482,3100.7,3100.6,0.00533543]
[1644932300478,1.28407345,3100.7,3100.6,0.00533543]
[1644932300678,1.24225222,3100.7,3100.6,0.00533543]
[1644932302929,2.42804552,3100.7,3100.6,0.00533543]
[1644932303129,0.3,3100.6,3100.5,0.00307447]
[1644932303334,0.48841945,3100.6,3100.5,0.00307447]
[1644932303530,0.8062,3100.5,3100.1,0.00533543]
[1644932303735,0.3,3100.4,3100.3,1.61229]
[1644932303931,0.49930993,3100.4,3100.3,1.61762543]
[1644932308482,1.37785556,3100.4,3100.3,1.61762543]
[1644932310537,1.37785556,3100.4,3099.9,0.14644438]
[1644932310538,4.55662692,3100.4,3099.9,0.14644438]
[1644932310737,0.3,3100.2,3099.9,0.14644438]
[1644932310937,0.43343583,3100.2,3099.9,0.14644438]
[1644932311335,0.13343583,3100.2,3099.9,0.14644438]
[1644932311538,0.80643,3100.1,3099.7,0.01118955]
[1644932311754,1.10645,3100.0,3099.7,0.01118955]
[1644932311936,1.1064263,3100.0,3099.5,0.80642]
[1644932312139,1.25637665,3100.0,3099.9,0.0028089]
[1644932312336,2.86920035,3100.0,3099.9,0.0028089]
[1644932312782,6.15355928,3100.0,3099.9,0.0028089]
[1644932313079,6.15355928,3100.0,3099.5,0.80642]
[1644932313282,0.80643,3099.7,3099.5,0.80642]
[1644932313480,3.13707097,3099.6,3099.3,0.01123755]
[1644932313880,3.57992016,3099.6,3099.3,0.01123755]
[1644932314287,4.38641036,3099.6,3099.2,1.61284]
[1644932314479,4.38641036,3099.6,3099.3,0.00280931]
[1644932314480,1.24933939,3099.6,3099.3,0.00280931]
[1644932314685,1.49930919,3099.6,3099.3,0.00280931]
[1644932314880,1.19930919,3099.6,3099.3,0.80926931]
[1644932315082,1.05646,3099.6,3099.3,0.80926931]
[1644932315283,0.80646,3099.6,3099.4,0.16242308]
[1644932315579,0.13266569,3100.2,3099.4,0.16242308]
[1644932315580,1.61234,3100.0,3099.5,2.07742]
[1644932315780,1.61234,3100.0,3099.6,0.80621]
[1644932316237,1.61234,3100.0,3099.6,1.80621]
[1644932316637,0.80621,3099.9,3099.6,1.80621]
[1644932317038,0.80621,3099.9,3099.7,18.77]
[1644932317639,0.80621,3099.9,3099.6,2.61520041]
[1644932317839,0.80621,3099.9,3099.6,2.61239]
[1644932318239,0.80621,3099.9,3099.6,2.61520041]
[1644932319041,0.80621,3099.9,3099.6,2.61239]
[1644932319240,0.80621,3099.9,3099.6,2.61519825]
[1644932319441,0.80621,3099.9,3099.6,21.38519825]
[1644932319642,0.73890237,3100.0,3099.6,21.38519825]
[1644932319845,0.25,3100.6,3099.9,0.01228019]
[1644932320086,2.6683701,3101.6,3100.1,18.77]
[1644932320087,3.5,3101.2,3100.1,18.77]
[1644932320283,0.25,3101.4,3100.2,18.77]
[1644932320482,0.25,3101.4,3100.2,1.62742308]
[1644932320483,1.61198,3100.9,3100.2,1.62742308]
[1644932320882,1.61198,3100.9,3100.4,0.80599]
[1644932321082,0.8061231,3100.8,3100.4,0.80599]
[1644932321281,0.97776279,3100.8,3100.4,0.80599]
[1644932321482,0.80617,3100.7,3100.4,0.80599]
[1644932321883,0.80617,3100.7,3100.4,0.80879767]
[1644932322081,0.80617,3100.7,3100.4,1.61491767]
[1644932322681,0.80617,3100.7,3100.4,1.61211]
[1644932322883,1.10617,3100.7,3100.4,1.61211]
[1644932323081,0.80617,3100.7,3100.4,0.80880776]
[1644932323925,0.80617,3100.7,3100.4,0.80599]
[1644932324327,0.80617,3100.7,3100.4,0.80880776]
[1644932324925,0.80617,3100.7,3100.4,1.61493776]
[1644932325127,0.80617,3100.7,3100.4,0.80599]
[1644932325325,0.80617,3100.7,3100.4,0.80880776]
[1644932325928,0.80617,3100.7,3100.5,0.0053122]
[1644932326130,4.3471098,3100.7,3100.5,0.0053122]
[1644932326329,3.23592462,3100.6,3100.5,0.0053122]
[1644932326527,0.80635,3100.5,3100.4,0.00281701]
[1644932326728,2.08493383,3100.5,3100.4,0.00281701]
[1644932327129,2.28055107,3100.5,3100.4,0.00281701]
[1644932327579,2.28055107,3100.5,3100.3,0.80629]
[1644932327784,1.51244,3100.4,3100.3,0.81441931]
[1644932327979,2.00722025,3100.4,3100.3,0.81441931]
[1644932328679,2.00722025,3100.4,3100.3,0.8116022]
[1644932329282,2.00722025,3100.4,3100.3,0.7767052]
[1644932330481,2.00722025,3100.4,3100.3,0.0053122]
[1644932330680,0.3,3100.3,3100.2,0.00281658]
[1644932330882,0.48652704,3100.3,3100.2,0.00812878]
[1644932331081,0.48652704,3100.3,3100.2,0.00281658]
[1644932331331,1.29281704,3100.3,3100.1,0.00281665]
[1644932331928,0.48652704,3100.3,3100.2,0.80631]
[1644932332129,0.48652704,3100.3,3100.2,0.8116222]
[1644932332729,0.3,3100.3,3100.2,0.8116222]
[1644932334130,0.45672003,3100.3,3100.2,0.8116222]
[1644932335184,1.67662551,3100.4,3100.2,0.8116222]
[1644932335387,1.7016176,3100.4,3100.2,0.8116222]
[1644932335785,0.3,3100.3,3100.2,0.8116222]
[1644932337685,1.51244,3100.4,3100.2,0.8116222]
[1644932341533,2.45615468,3100.4,3100.2,0.8116222]
[1644932342135,0.3,3100.3,3100.2,0.0053122]
[1644932342335,0.44110471,3100.3,3100.2,0.0053122]
[1644932343779,0.3,3100.3,3100.2,0.0053122]
[1644932343979,0.43357528,3100.3,3100.2,0.0053122]
[1644932344781,2.3187099,3100.4,3100.2,0.0053122]
[1644932344981,2.3187099,3100.4,3100.2,0.8116122]
[1644932344982,2.50616577,3100.4,3100.2,0.8116122]
[1644932345181,0.8063675,3100.3,3100.0,0.87552892]
[1644932345481,0.8063675,3100.3,3099.0,1.16898228]
[1644932345482,0.80647,3100.1,3099.2,7.43]
[1644932345681,1.35647,3100.1,3099.2,7.43]
[1644932345884,1.35647,3100.1,3099.6,1.61283]
[1644932345885,0.74219761,3100.1,3099.6,1.61283]
[1644932346543,0.80646,3099.9,3099.6,1.61283]
[1644932346747,0.3,3099.8,3099.6,1.61283]
[1644932347144,0.80646,3099.9,3099.6,1.61283]
[1644932347346,0.95496259,3099.9,3099.6,1.61283]
[1644932347543,0.80646,3099.9,3099.6,1.61283]
[1644932347745,0.97691476,3099.9,3099.2,7.43]
[1644932347945,3.22146987,3099.8,3099.2,7.43]
[1644932348145,0.80646,3099.7,3099.2,7.43]
[1644932348547,3.225827,3099.6,3099.2,7.43]
[1644932349146,0.80643,3099.5,3099.2,7.43]
[1644932349347,0.80643,3099.5,3099.2,7.4332244]
[1644932349348,3.2260133,3099.5,3099.2,7.4332244]
[1644932349548,4.74164886,3099.4,3099.2,7.4332244]
[1644932349746,4.74164886,3099.4,3099.2,0.0032244]
[1644932349978,1.6130003,3099.4,3099.2,0.0032244]
[1644932350178,4.73304258,3099.4,3099.2,0.0032244]
[1644932350384,3.21010315,3099.3,3099.0,0.00358228]
[1644932350582,5.36333,3099.3,3099.1,0.00322448]
[1644932350779,3.4766908,3099.3,3099.1,0.00322448]
[1644932350981,3.63520704,3099.3,3099.1,0.00322448]
[1644932351379,1.02809289,3099.2,3099.1,0.00322448]
[1644932351579,1.02809289,3099.2,3099.0,0.00358228]
[1644932351781,5.36171689,3099.2,3099.0,0.00358228]
[1644932351980,5.5439214,3099.2,3099.0,0.00358228]
[1644932352182,3.70912851,3099.2,3099.0,0.00358228]
[1644932352383,2.420184,3099.2,3099.0,0.00358228]
[1644932352581,2.6019692,3099.2,3099.0,0.00358228]
[1644932352982,2.420184,3099.2,3099.0,0.00358228]
[1644932353582,3.526804,3099.2,3099.0,0.00358228]
[1644932354031,3.226804,3099.2,3099.0,0.00358228]
[1644932354931,6.64990063,3099.2,3099.0,0.00358228]
[1644932355131,3.526804,3099.2,3099.0,0.00358228]
[1644932355331,3.66932468,3099.2,3099.0,0.00358228]
[1644932356532,6.81864577,3099.2,3099.0,0.00358228]
[1644932356733,3.66932468,3099.2,3099.0,0.00358228]
[1644932356934,0.44252068,3099.2,3099.0,0.00358228]
[1644932357133,1.05667,3099.3,3099.0,0.00358228]
[1644932357984,1.05667,3099.3,3099.0,0.81331285]
[1644932357985,1.8631883,3099.3,3099.0,0.81331285]
[1644932358783,2.05923979,3099.3,3099.0,0.81009228]
[1644932359182,2.05923979,3099.3,3099.0,0.81320416]
[1644932359383,1.25272149,3099.3,3099.0,0.81320416]
[1644932359581,1.05667,3099.3,3099.0,0.81320416]
[1644932360082,1.05667,3099.3,3099.0,0.81009228]
[1644932360282,1.05667,3099.3,3099.0,0.81320416]
[1644932360484,3.1,3099.3,3099.0,0.81320416]
[1644932360883,3.1,3099.3,3099.1,0.00526132]
[1644932361345,3.1,3099.3,3099.2,19.235]
[1644932361542,3.1,3099.3,3099.2,19.24026132]
[1644932361739,3.1,3099.3,3099.2,20.24026132]
[1644932362039,3.1,3099.3,3099.2,1.47026132]
[1644932362241,3.1,3099.3,3099.2,20.24026132]
[1644932362439,3.1,3099.3,3099.2,1.47026132]
[1644932362840,3.1,3099.3,3099.2,0.47026132]
[1644932363046,3.1,3099.3,3099.2,0.00526132]
[1644932366882,3.90665,3099.3,3099.1,0.00293792]
[1644932367082,3.23249924,3099.2,3099.1,0.00293792]
[1644932367282,3.23249924,3099.2,3099.0,0.00358228]
[1644932367483,0.80667,3099.2,3099.1,0.00293792]
[1644932368082,5.23172456,3099.3,3099.1,0.00293792]
[1644932368284,4.15665,3099.3,3099.1,0.00293792]
[1644932368482,3.90665,3099.3,3099.0,0.00358228]
[1644932368732,3.90665,3099.3,3099.0,0.00652027]
[1644932368933,3.90665,3099.3,3099.1,0.80653]
[1644932368934,3.1,3099.3,3099.1,0.80653]
[1644932369134,3.1,3099.3,3099.1,0.81179132]
[1644932370135,3.0986369,3099.3,3099.1,0.81179132]
[1644932373282,34.76903048,3099.2,3099.1,0.81179132]
[1644932374488,3.9050869,3099.3,3099.1,0.81179132]
[1644932375987,3.8550869,3099.3,3099.1,0.81179132]
[1644932376445,53.20259011,3099.2,3099.1,0.81179132]
[1644932376944,3.0986369,3099.3,3099.1,0.81179132]
[1644932377744,3.0986369,3099.3,3099.2,0.465]
[1644932377946,0.25,3100.0,3099.3,6.85]
[1644932378144,2.41914,3100.8,3099.3,6.85]
[1644932378145,3.5,3100.6,3099.7,18.78273316]
[1644932378349,3.5,3100.7,3099.8,19.235]
[1644932378545,3.5,3100.7,3099.9,1.0]
[1644932378745,3.5,3100.7,3100.0,0.465]
[1644932378746,0.80613,3100.5,3100.0,0.465]
[1644932379445,0.80613,3100.5,3100.1,0.80621]
[1644932379646,0.80613,3100.5,3100.2,0.465]
[1644932381085,3.13709677,3100.4,3099.9,0.0032161]
[1644932381392,2.4190436,3100.4,3099.9,0.0032161]
[1644932381584,0.3,3100.3,3099.3,1.13146132]
[1644932381783,0.3,3100.3,3099.3,2.13146132]
[1644932381784,1.6127,3100.0,3099.3,2.13146132]
[1644932381984,1.6127,3100.0,3099.9,1.61582605]
[1644932381985,2.1627,3100.0,3099.9,1.61582605]
[1644932382185,2.31129806,3100.0,3099.9,1.61582605]
[1644932382784,2.31129806,3100.0,3099.9,1.61261]
[1644932383286,5.47619719,3100.0,3099.9,1.61261]
[1644932383484,5.47619719,3100.0,3099.8,0.00321615]
[1644932383736,3.17082484,3099.9,3099.8,0.00321615]
[1644932383937,3.92419046,3100.0,3099.7,1.6127]
[1644932384138,3.16535808,3099.9,3099.7,1.6127]
[1644932384339,3.11773046,3100.0,3099.7,1.61591618]
[1644932384537,4.73057046,3100.0,3099.7,1.61591618]
[1644932385139,4.73057046,3100.0,3099.7,1.6127]
[1644932385338,4.73057046,3100.0,3099.7,1.61591622]
[1644932385539,0.80641,3099.9,3099.7,1.61591622]
[1644932385939,1.79467755,3099.9,3099.7,1.61591622]
[1644932386342,1.79467755,3099.9,3099.7,1.6127]
[1644932387887,1.79467755,3099.9,3099.6,0.00321626]
[1644932387888,3.12040625,3099.8,3099.6,0.00321626]
[1644932388086,5.03365335,3099.8,3099.6,0.00321626]
[1644932388288,4.21596429,3099.7,3099.6,0.00321626]
[1644932388888,4.21596429,3099.7,3099.3,0.00526132]
[1644932389088,6.63592829,3099.7,3099.5,0.00321638]
[1644932389289,4.37124045,3099.6,3099.5,0.00321638]
[1644932389488,4.52377992,3099.6,3099.5,0.00321638]
[1644932390090,5.33035992,3099.6,3099.3,0.00526132]
[1644932390487,6.13694992,3099.6,3099.3,0.00526132]
[1644932390687,0.8065714,3099.5,3099.3,0.00526132]
[1644932390888,0.95496428,3099.5,3099.3,0.00526132]
[1644932392333,0.95496428,3099.5,3099.0,0.00716456]
[1644932392334,4.36256589,3099.4,3099.0,0.00716456]
[1644932392536,2.98745857,3099.3,3099.0,0.00716456]
[1644932392736,0.3,3099.2,3099.0,0.00716456]
[1644932392934,0.3,3099.2,3099.0,0.01432912]
[1644932392935,9.95,3099.2,3099.0,0.01432912]
[1644932393135,4.87403752,3099.1,3099.0,0.01432912]
[1644932393335,4.87403752,3099.1,3098.5,0.00201139]
[1644932393336,6.1,3099.0,3098.5,0.00201139]
[1644932393636,6.48811075,3098.9,3097.8,0.01787036]
[1644932393835,6.37418026,3098.8,3097.8,0.01787036]
[1644932394036,4.4,3098.6,3097.8,0.01787036]
[1644932394436,0.83878593,3098.5,3097.8,0.01787036]
[1644932394636,1.13878593,3098.5,3097.8,0.01787036]
[1644932394835,2.75286593,3098.5,3097.8,0.01787036]
[1644932395288,7.05989383,3098.5,3097.8,0.01787036]
[1644932395484,0.80702,3098.4,3097.8,0.01787036]
[1644932395683,0.80704,3098.3,3097.8,0.01787036]
[1644932395883,3.54539151,3098.2,3097.8,0.01787036]
[1644932396084,4.0,3098.1,3097.3,5.169]
[1644932396285,0.3,3098.0,3097.3,5.169]
[1644932396484,0.807027,3097.9,3097.3,5.169]
[1644932396685,0.80695,3097.7,3097.3,5.169]
[1644932396885,0.99734616,3097.9,3097.5,0.87119917]
[1644932396886,0.14772562,3097.9,3097.5,0.87119917]
[1644932397085,1.10705,3098.0,3097.5,0.87119917]
[1644932397285,0.80705,3098.0,3097.5,2.48476917]
[1644932397485,0.80705,3098.0,3097.6,0.80681]
[1644932397486,1.6138954,3098.0,3097.6,0.80681]
[1644932397685,1.78635315,3098.0,3097.5,0.465]
[1644932397888,1.6138954,3098.0,3097.5,0.465]
[1644932398486,1.07314042,3097.8,3097.5,0.415]
[1644932398735,0.8069245,3097.8,3097.3,5.169]
[1644932398935,0.16662142,3097.8,3097.3,5.169]
[1644932399136,0.48691044,3097.9,3097.3,5.169]
[1644932399535,0.3,3097.9,3097.4,0.80693]
[1644932399737,2.85412925,3098.2,3097.8,0.94372753]
[1644932399937,0.25,3098.2,3097.9,0.465]
[1644932400136,4.44484997,3099.0,3097.9,0.465]
[1644932400137,3.5,3098.8,3097.9,0.465]
[1644932400338,0.25,3098.9,3097.9,2.465]
[1644932400538,0.25,3098.9,3097.9,21.235]
[1644932400937,0.80663,3098.6,3097.9,21.235]
[1644932401135,0.80663,3098.6,3097.9,20.235]
[1644932401335,0.80663,3098.6,3098.0,0.80662]
[1644932401537,0.80663,3098.6,3098.0,1.27162]
[1644932401735,0.80663,3098.6,3098.1,18.77]
[1644932401936,0.40473365,3098.9,3098.2,1.0]
[1644932402137,0.25,3098.9,3098.2,1.0]
[1644932402587,0.25,3098.9,3098.3,0.465]
[1644932402788,0.25,3098.9,3098.3,1.44447179]
[1644932402992,2.16318,3099.0,3098.3,1.44447179]
[1644932403788,0.2802,3098.9,3098.4,0.80648]
[1644932403989,0.2802,3098.9,3098.5,0.465]
[1644932404588,1.08677,3098.9,3098.5,0.465]
[1644932404788,1.08677,3098.9,3098.5,19.235]
[1644932404989,0.2802,3098.9,3098.6,0.80656]
[1644932405190,0.2802,3098.9,3098.5,0.465]
[1644932405389,0.2802,3098.9,3098.2,1.0]
[1644932405590,0.2802,3098.9,3098.0,0.465]
[1644932405792,1.08676,3098.9,3098.0,0.465]
[1644932405991,1.27675121,3098.9,3098.0,0.465]
[1644932406230,0.92040772,3098.8,3098.0,0.465]
[1644932406435,0.8066629,3098.7,3098.2,1.61333]
[1644932406632,0.93675773,3098.7,3098.2,1.61333]
[1644932406833,1.51695773,3098.7,3098.2,1.61333]
[1644932407635,0.80668,3098.6,3098.2,1.61333]
[1644932408037,0.80668,3098.6,3098.3,0.00518387]
[1644932408237,0.80668,3098.6,3098.4,0.8067]
[1644932408642,0.80668,3098.6,3097.4,1.0]
[1644932408643,3.8,3098.5,3097.4,1.0]
[1644932408841,3.8,3098.5,3097.3,5.169]
[1644932408842,0.8070686,3098.2,3097.3,5.169]
[1644932409039,0.97744873,3098.2,3097.3,5.169]
[1644932409440,4.47744873,3098.2,3097.3,5.169]
[1644932409841,1.17875545,3097.7,3097.3,5.169]
[1644932410095,0.8070905,3097.6,3097.3,5.169]
[1644932410289,4.48095591,3097.6,3097.3,5.169]
[1644932410488,3.97386541,3097.6,3097.3,5.169]
[1644932410689,3.98132572,3097.6,3097.3,4.76358752]
[1644932411694,4.37109601,3097.5,3097.3,4.66358752]
[1644932411891,7.14795244,3097.4,3097.3,4.66358752]
[1644932412192,7.44795244,3097.4,3097.3,4.66358752]
[1644932412390,7.58362047,3097.4,3097.3,4.66358752]
[1644932412992,7.86382047,3097.4,3097.3,4.66358752]
[1644932413837,8.16382047,3097.4,3097.3,4.66358752]
[1644932414036,8.16382047,3097.4,3097.3,4.66254798]
[1644932414433,1.6145135,3097.3,3096.9,0.0078472]
[1644932414633,3.5,3097.1,3096.9,0.0078472]
[1644932414835,3.68320733,3097.1,3096.9,0.0078472]
[1644932415034,0.3,3097.0,3096.9,0.0078472]
[1644932415236,0.4548695,3097.0,3096.9,0.0078472]
[1644932415437,1.2621501,3097.0,3096.3,0.13596468]
[1644932415637,0.8073,3096.9,3096.3,0.0156944]
[1644932415836,0.55,3096.9,3096.3,0.0156944]
[1644932416035,3.5,3096.7,3096.3,0.0156944]
[1644932416236,3.8,3096.7,3096.3,0.0156944]
[1644932416735,1.61477,3096.6,3096.3,0.0156944]
[1644932417133,3.5,3096.5,3096.2,5.1346944]
[1644932417591,0.3,3096.4,3096.2,5.1346944]
[1644932417792,1.26959229,3096.4,3096.2,5.1346944]
[1644932418695,3.5,3096.3,3096.2,5.1346944]
[1644932418892,3.8,3096.3,3096.2,5.1346944]
[1644932419095,4.27176684,3096.3,3096.2,5.1346944]
[1644932419293,4.0802,3096.3,3096.2,5.1346944]
[1644932419494,4.21423966,3096.3,3096.2,5.1346944]
[1644932420096,4.0802,3096.3,3096.2,4.9846944]
[1644932420298,0.5802,3096.3,3096.2,4.9846944]
[1644932420500,0.2802,3096.3,3096.2,4.9846944]
[1644932420696,0.5802,3096.3,3096.2,4.9846944]
[1644932420896,0.2802,3096.3,3096.2,4.9846944]
[1644932421099,0.5802,3096.3,3096.2,4.9846944]